fUSD/lending_fUSD_20240714
["ID","MTS","AMOUNT","RATE_DAILY","PERIOD"]
[332079122,1720951864093,-1080.56,0.00013917,2]
[332079123,1720951864103,-1654.9,0.00013917,2]
[332079124,1720951864114,-500.0,0.00013917,2]
[332079125,1720951864123,-5235.61,0.00013917,2]
[332079126,1720951864135,-1356.51,0.00013917,2]
[332079127,1720951864145,-500.0,0.00013917,2]
[332079128,1720951864154,-1084.9,0.00013917,2]
[332079129,1720951864165,-693.27,0.00013917,2]
[332079130,1720951864175,-500.0,0.00013917,2]
[332079131,1720951864184,-664.02,0.00013917,2]
[332079132,1720951864194,-500.0,0.00013917,2]
[332079133,1720951864204,-880.76,0.00013917,2]
[332079134,1720951864213,-500.0,0.00013917,2]
[332079135,1720951864223,-766.66,0.00013917,2]
[332079136,1720951864233,-500.0,0.00013917,2]
[332079137,1720951864243,-602.75,0.00013917,2]
[332079138,1720951864252,-500.0,0.00013917,2]
[332079139,1720951864262,-725.45,0.00013917,2]
[332079140,1720951864272,-500.0,0.00013917,2]
[332079141,1720951864282,-500.0,0.00013917,2]
[332079142,1720951864291,-500.0,0.00013917,2]
[332079143,1720951864300,-1229.62,0.00013917,2]
[332079144,1720951864310,-500.0,0.00013917,2]
[332079145,1720951864319,-504.17,0.00013917,2]
[332079146,1720951864328,-961.65,0.00013917,2]
[332079147,1720951864338,-521.17,0.00013917,2]
[332079148,1720951864348,-686.28,0.00013917,2]
[332079149,1720951864358,-791.41,0.00013917,2]
[332079150,1720951864368,-500.0,0.00013917,2]
[332079151,1720951864378,-540.4,0.00013917,2]
[332079152,1720951864387,-705.37,0.00013917,2]
[332079153,1720951864397,-1110.66,0.00013917,2]
[332079154,1720951864407,-1284.09,0.00013917,2]
[332079155,1720951864416,-500.0,0.00013917,2]
[332079156,1720951864427,-699.23,0.00013917,2]
[332079157,1720951864436,-582.02,0.00013917,2]
[332079158,1720951864445,-979.12,0.00013917,2]
[332079159,1720951864455,-500.0,0.00013917,2]
[332079160,1720951864463,-630.72,0.00013917,2]
[332079161,1720951864472,-500.0,0.00013917,2]
[332079162,1720951864481,-688.76,0.00013917,2]
[332079163,1720951864491,-503.86,0.00013917,2]
[332079164,1720951864500,-500.0,0.00013917,2]
[332079165,1720951864509,-228188.85719778,0.0001392,2]
[332079166,1720951864880,-902.63081299,0.0001392,2]
[332079167,1720951865151,-822.45,0.00013863,2]
[332079168,1720951865161,-308.48390406,0.00013899,2]
[332079169,1720951865170,-822.45,0.00013917,2]
[332079170,1720951865178,-1716.8661914,0.0001392,2]
[332079171,1720951865189,-659.94979241,0.0001392,2]
[332079172,1720951865200,-5795.0,0.0001392,2]
[332079173,1720951865211,-5169.12813013,0.0001392,2]
[332079174,1720951865222,-8831.05950816,0.0001392,2]
[332079175,1720951865233,-145376.36696068,0.0001392,2]
[332079176,1720951865244,-4130.24694756,0.0001392,2]
[332079177,1720951865255,-17462.9400844,0.0001392,2]
[332079178,1720951865265,-2861.79133294,0.0001392,2]
[332079179,1720951865368,-1035.81827002,0.0001392,2]
[332079180,1720951865379,-1587.82059042,0.0001392,2]
[332079181,1720951865390,-1279.76896592,0.0001392,2]
[332079182,1720951865407,-362.35711128,0.0001392,2]
[332079183,1720951865418,-1107.05229675,0.0001392,2]
[332079184,1720951865428,-62484.29335375,0.0001392,2]
[332079185,1720951865440,-5827.69687425,0.0001392,2]
[332079186,1720951865458,-4758.8714046,0.0001392,2]
[332079187,1720951865470,-461.48417456,0.0001392,2]
[332079188,1720951865478,-150.0,0.0001393,2]
[332079189,1720951865488,-150.0,0.00013932,2]
[332079190,1720951865497,-150.0,0.00013939,2]
[332079191,1720951865506,-150.0,0.00013959,2]
[332079192,1720951865516,-221.97136327,0.00013962,2]
[332079193,1720951865525,-150.0,0.00013965,2]
[332079194,1720951865534,-300.0,0.00013971,2]
[332079195,1720951865543,-555.6,0.00013972,2]
[332079196,1720951865552,-500.0,0.00013972,2]
[332079197,1720951865561,-549.33,0.00013972,2]
[332079198,1720951865571,-500.0,0.00013972,2]
[332079199,1720951865580,-663.42,0.00013972,2]
[332079200,1720951865590,-729.08,0.00013972,2]
[332079201,1720951865599,-500.0,0.00013972,2]
[332079202,1720951865608,-500.0,0.00013972,2]
[332079203,1720951865620,-500.0,0.00013972,2]
[332079204,1720951865630,-500.0,0.00013972,2]
[332079205,1720951865642,-500.0,0.00013972,2]
[332079206,1720951865652,-501.64,0.00013972,2]
[332079207,1720951865661,-626.62,0.00013972,2]
[332079208,1720951865671,-500.0,0.00013972,2]
[332079209,1720951865680,-591.47,0.00013972,2]
[332079210,1720951865690,-500.0,0.00013972,2]
[332079211,1720951865699,-500.0,0.00013972,2]
[332079212,1720951865708,-500.0,0.00013972,2]
[332079213,1720951865717,-500.0,0.00013972,2]
[332079214,1720951865726,-500.0,0.00013972,2]
[332079215,1720951865736,-500.0,0.00013972,2]
[332079216,1720951865745,-500.0,0.00013972,2]
[332079217,1720951865755,-752.06,0.00013972,2]
[332079218,1720951865764,-647.88,0.00013972,2]
[332079219,1720951865850,-500.0,0.00013972,2]
[332079220,1720951865894,-710.55,0.00013972,2]
[332079221,1720951865905,-500.0,0.00013972,2]
[332079222,1720951865914,-874.52,0.00013972,2]
[332079223,1720951865924,-561.67,0.00013972,2]
[332079224,1720951865933,-500.0,0.00013972,2]
[332079225,1720951865943,-513.18,0.00013972,2]
[332079226,1720951865956,-1099.1,0.00013972,2]
[332079227,1720951865966,-577.19,0.00013972,2]
[332079228,1720951865975,-1251.6,0.00013972,2]
[332079229,1720951865985,-500.0,0.00013972,2]
[332079230,1720951865995,-967.36,0.00013972,2]
[332079231,1720951866005,-592.51775806,0.00013972,2]
[332079232,1720951866014,-500.0,0.00013972,2]
[332079233,1720951866024,-500.0,0.00013972,2]
[332079234,1720951866033,-500.0,0.00013972,2]
[332079235,1720951866043,-500.0,0.00013972,2]
[332079236,1720951866052,-548.38,0.00013972,2]
[332079237,1720951866062,-792.28,0.00013972,2]
[332079238,1720951866071,-1047.45,0.00013972,2]
[332079239,1720951866080,-500.0,0.00013972,2]
[332079240,1720951866089,-500.0,0.00013972,2]
[332079241,1720951866098,-500.0,0.00013972,2]
[332079242,1720951866107,-819.25,0.00013972,2]
[332079243,1720951866116,-798.78,0.00013972,2]
[332079244,1720951866126,-500.0,0.00013972,2]
[332079245,1720951866135,-500.0,0.00013972,2]
[332079246,1720951866144,-702.1,0.00013972,2]
[332079247,1720951866153,-500.0,0.00013972,2]
[332079248,1720951866162,-528.97,0.00013972,2]
[332079249,1720951866171,-663.77,0.00013972,2]
[332079250,1720951866181,-500.0,0.00013972,2]
[332079251,1720951866190,-567.41,0.00013972,2]
[332079252,1720951866199,-1164.4,0.00013972,2]
[332079253,1720951866209,-150.0,0.00013972,2]
[332079254,1720951866218,-500.0,0.00013972,2]
[332079255,1720951866227,-531.52,0.00013972,2]
[332079256,1720951866236,-624.46,0.00013972,2]
[332079257,1720951866246,-769.33,0.00013972,2]
[332079258,1720951866255,-714.55,0.00013972,2]
[332079259,1720951866264,-500.0,0.00013972,2]
[332079260,1720951866273,-1278.3,0.00013972,2]
[332079261,1720951866282,-664.99,0.00013972,2]
[332079262,1720951866292,-664.32,0.00013972,2]
[332079263,1720951866301,-500.0,0.00013972,2]
[332079264,1720951866310,-1397.31,0.00013972,2]
[332079265,1720951866319,-1092.83,0.00013972,2]
[332079266,1720951866328,-197.40863702,0.00013972,2]
[332079267,1720951866338,-828.97,0.00013972,2]
[332079268,1720951866347,-500.0,0.00013972,2]
[332079269,1720951866356,-500.0,0.00013972,2]
[332079270,1720951866366,-500.0,0.00013972,2]
[332079271,1720951866376,-1121.78,0.00013972,2]
[332079272,1720951866385,-500.0,0.00013972,2]
[332079273,1720951866394,-500.0,0.00013972,2]
[332079274,1720951866403,-1221.87,0.00013972,2]
[332079275,1720951866411,-500.0,0.00013972,2]
[332079276,1720951866420,-669.46,0.00013972,2]
[332079277,1720951866430,-500.0,0.00013972,2]
[332079278,1720951866439,-500.0,0.00013972,2]
[332079279,1720951866449,-1065.74,0.00013972,2]
[332079280,1720951866458,-758.47,0.00013972,2]
[332079281,1720951866467,-500.0,0.00013972,2]
[332079282,1720951866477,-946.33,0.00013972,2]
[332079283,1720951866486,-524.85,0.00013972,2]
[332079284,1720951866495,-863.16,0.00013972,2]
[332079285,1720951866504,-500.0,0.00013972,2]
[332079286,1720951866513,-698.91,0.00013972,2]
[332079287,1720951866522,-500.0,0.00013972,2]
[332079288,1720951866532,-500.0,0.00013972,2]
[332079289,1720951866542,-695.87,0.00013972,2]
[332079290,1720951866551,-500.0,0.00013972,2]
[332079291,1720951866562,-500.0,0.00013972,2]
[332079292,1720951866572,-500.0,0.00013972,2]
[332079293,1720951866583,-830.28,0.00013972,2]
[332079294,1720951866594,-509.11,0.00013972,2]
[332079295,1720951866603,-500.0,0.00013972,2]
[332079296,1720951866615,-469.8689807,0.00013972,2]
[332079297,1720951866624,-1028.67,0.00013972,2]
[332079298,1720951866633,-756.14,0.00013972,2]
[332079299,1720951866644,-684.67,0.00013972,2]
[332079300,1720951866654,-859.96,0.00013972,2]
[332079301,1720951866663,-500.0,0.00013972,2]
[332079302,1720951866672,-500.0,0.00013972,2]
[332079303,1720951866681,-597.62,0.00013972,2]
[332079304,1720951866690,-500.0,0.00013972,2]
[332079305,1720951866700,-500.0,0.00013972,2]
[332079306,1720951866709,-500.0,0.00013972,2]
[332079307,1720951866719,-943.43,0.00013972,2]
[332079308,1720951866728,-1042.69,0.00013972,2]
[332079309,1720951866737,-500.0,0.00013972,2]
[332079310,1720951866746,-500.0,0.00013972,2]
[332079311,1720951866756,-575.87,0.00013972,2]
[332079312,1720951866765,-500.0,0.00013972,2]
[332079313,1720951866774,-1061.08,0.00013972,2]
[332079314,1720951866783,-640.1,0.00013972,2]
[332079315,1720951866793,-1317.61,0.00013972,2]
[332079316,1720951866803,-1072.0,0.00013972,2]
[332079317,1720951866812,-500.0,0.00013972,2]
[332079318,1720951866821,-1075.11,0.00013972,2]
[332079319,1720951866831,-500.0,0.00013972,2]
[332079320,1720951866840,-779.93,0.00013972,2]
[332079321,1720951866849,-500.0,0.00013972,2]
[332079322,1720951866858,-708.71,0.00013972,2]
[332079323,1720951866868,-705.94,0.00013972,2]
[332079324,1720951866878,-500.0,0.00013972,2]
[332079325,1720951866887,-879.91,0.00013972,2]
[332079326,1720951866896,-500.0,0.00013972,2]
[332079327,1720951866906,-642.32,0.00013972,2]
[332079328,1720951866915,-500.0,0.00013972,2]
[332079329,1720951866924,-500.0,0.00013972,2]
[332079330,1720951866933,-500.0,0.00013972,2]
[332079331,1720951866943,-500.0,0.00013972,2]
[332079332,1720951866955,-500.0,0.00013972,2]
[332079333,1720951866965,-500.0,0.00013972,2]
[332079334,1720951866974,-1009.1,0.00013972,2]
[332079335,1720951866984,-500.0,0.00013972,2]
[332079336,1720951866994,-500.0,0.00013972,2]
[332079337,1720951867003,-500.0,0.00013972,2]
[332079338,1720951867013,-500.0,0.00013972,2]
[332079339,1720951867022,-500.0,0.00013972,2]
[332079340,1720951867036,-500.0,0.00013972,2]
[332079341,1720951867045,-656.61,0.00013972,2]
[332079342,1720951867055,-1346.69,0.00013972,2]
[332079343,1720951867065,-1135.02,0.00013972,2]
[332079344,1720951867074,-552.77,0.00013972,2]
[332079345,1720951867084,-814.17,0.00013972,2]
[332079346,1720951867094,-500.0,0.00013972,2]
[332079347,1720951867103,-500.0,0.00013972,2]
[332079348,1720951867113,-819.52,0.00013972,2]
[332079349,1720951867122,-696.38,0.00013972,2]
[332079350,1720951867131,-500.0,0.00013972,2]
[332079351,1720951867141,-809.82,0.00013972,2]
[332079352,1720951867150,-501.43,0.00013972,2]
[332079353,1720951867160,-565.6,0.00013972,2]
[332079354,1720951867170,-500.0,0.00013972,2]
[332079355,1720951867179,-645.03,0.00013972,2]
[332079356,1720951867189,-500.0,0.00013972,2]
[332079357,1720951867198,-500.0,0.00013972,2]
[332079358,1720951867208,-636.65,0.00013972,2]
[332079359,1720951867217,-500.0,0.00013972,2]
[332079360,1720951867227,-624.0,0.00013972,2]
[332079361,1720951867237,-540.31,0.00013972,2]
[332079362,1720951867247,-500.0,0.00013972,2]
[332079363,1720951867256,-590.91,0.00013972,2]
[332079364,1720951867266,-591.77,0.00013972,2]
[332079365,1720951867276,-500.0,0.00013972,2]
[332079366,1720951867285,-500.0,0.00013972,2]
[332079367,1720951867295,-500.0,0.00013972,2]
[332079368,1720951867304,-500.0,0.00013972,2]
[332079369,1720951867313,-490.39,0.00013972,2]
[332079370,1720951867323,-500.0,0.00013972,2]
[332079371,1720951867332,-500.0,0.00013972,2]
[332079372,1720951867341,-679.15,0.00013972,2]
[332079373,1720951867350,-500.0,0.00013972,2]
[332079374,1720951867360,-500.0,0.00013972,2]
[332079375,1720951867370,-500.0,0.00013972,2]
[332079376,1720951867380,-709.17,0.00013972,2]
[332079377,1720951867389,-500.0,0.00013972,2]
[332079378,1720951867398,-500.0,0.00013972,2]
[332079379,1720951867408,-500.0,0.00013972,2]
[332079380,1720951867418,-500.0,0.00013972,2]
[332079381,1720951867427,-500.0,0.00013972,2]
[332079382,1720951867437,-500.0,0.00013972,2]
[332079383,1720951867446,-529.2,0.00013972,2]
[332079384,1720951867455,-543.12,0.00013972,2]
[332079385,1720951867465,-687.6,0.00013972,2]
[332079386,1720951867475,-500.0,0.00013972,2]
[332079387,1720951867484,-500.0,0.00013972,2]
[332079388,1720951867493,-500.0,0.00013972,2]
[332079389,1720951867502,-579.49,0.00013972,2]
[332079390,1720951867512,-500.0,0.00013972,2]
[332079391,1720951867521,-500.0,0.00013972,2]
[332079392,1720951867530,-845.16,0.00013972,2]
[332079393,1720951867540,-453.61084277,0.00013972,2]
[332079394,1720951867549,-777.06,0.00013972,2]
[332079395,1720951867559,-976.24,0.00013972,2]
[332079396,1720951867569,-1026.17,0.00013972,2]
[332079397,1720951867578,-502.59,0.00013972,2]
[332079398,1720951867588,-766.72,0.00013972,2]
[332079399,1720951867597,-567.02,0.00013972,2]
[332079400,1720951867607,-500.0,0.00013972,2]
[332079401,1720951867619,-500.0,0.00013972,2]
[332079402,1720951867628,-557.06,0.00013972,2]
[332079403,1720951867640,-500.0,0.00013972,2]
[332079404,1720951867650,-500.0,0.00013972,2]
[332079405,1720951867660,-635.23760144,0.00013972,2]
[332079406,1720951867669,-752.08,0.00013972,2]
[332079407,1720951867679,-833.79,0.00013972,2]
[332079408,1720951867688,-500.0,0.00013972,2]
[332079409,1720951867698,-500.0,0.00013972,2]
[332079410,1720951867707,-523.22,0.00013972,2]
[332079411,1720951867717,-671.16,0.00013972,2]
[332079412,1720951867727,-765.3,0.00013972,2]
[332079413,1720951867739,-664.48,0.00013972,2]
[332079414,1720951867749,-862.73,0.00013972,2]
[332079415,1720951867760,-500.0,0.00013972,2]
[332079416,1720951867770,-500.0,0.00013972,2]
[332079417,1720951867781,-963.85,0.00013972,2]
[332079418,1720951867791,-500.0,0.00013972,2]
[332079419,1720951867800,-500.0,0.00013972,2]
[332079420,1720951867811,-500.0,0.00013972,2]
[332079421,1720951867821,-570.85,0.00013972,2]
[332079422,1720951867832,-535.49,0.00013972,2]
[332079423,1720951867842,-500.0,0.00013972,2]
[332079424,1720951867852,-745.48,0.00013972,2]
[332079425,1720951867861,-500.0,0.00013972,2]
[332079426,1720951867872,-878.82,0.00013972,2]
[332079427,1720951867881,-500.0,0.00013972,2]
[332079428,1720951867891,-500.0,0.00013972,2]
[332079429,1720951867901,-500.0,0.00013972,2]
[332079430,1720951867911,-500.0,0.00013972,2]
[332079431,1720951867921,-745.6,0.00013972,2]
[332079432,1720951867932,-685.51,0.00013972,2]
[332079433,1720951867943,-500.0,0.00013972,2]
[332079434,1720951867955,-500.0,0.00013972,2]
[332079435,1720951867967,-626.41,0.00013972,2]
[332079436,1720951867978,-756.11,0.00013972,2]
[332079437,1720951867987,-606.6,0.00013972,2]
[332079438,1720951867997,-1030.73,0.00013972,2]
[332079439,1720951868007,-648.06,0.00013972,2]
[332079440,1720951868016,-500.0,0.00013972,2]
[332079441,1720951868026,-943.23,0.00013972,2]
[332079442,1720951868036,-962.58,0.00013972,2]
[332079443,1720951868046,-504.73,0.00013972,2]
[332079444,1720951868056,-500.0,0.00013972,2]
[332079445,1720951868065,-1326.92,0.00013972,2]
[332079446,1720951868074,-870.16,0.00013972,2]
[332079447,1720951868084,-500.0,0.00013972,2]
[332079448,1720951868094,-1095.66,0.00013972,2]
[332079449,1720951868103,-685.36,0.00013972,2]
[332079450,1720951868113,-500.0,0.00013972,2]
[332079451,1720951868123,-500.0,0.00013972,2]
[332079452,1720951868133,-500.0,0.00013972,2]
[332079453,1720951868143,-500.0,0.00013972,2]
[332079454,1720951868153,-544.57,0.00013972,2]
[332079455,1720951868163,-571.71,0.00013972,2]
[332079456,1720951868172,-644.56,0.00013972,2]
[332079457,1720951868447,-902.0,0.00013972,2]
[332079458,1720951868458,-500.0,0.00013972,2]
[332079459,1720951868468,-500.0,0.00013972,2]
[332079460,1720951868477,-737.03,0.00013972,2]
[332079461,1720951868487,-500.0,0.00013972,2]
[332079462,1720951868497,-788.7,0.00013972,2]
[332079463,1720951868507,-500.0,0.00013972,2]
[332079464,1720951868518,-1235.68,0.00013972,2]
[332079465,1720951868527,-578.84,0.00013972,2]
[332079466,1720951868537,-500.0,0.00013972,2]
[332079467,1720951868547,-500.0,0.00013972,2]
[332079468,1720951868558,-500.0,0.00013972,2]
[332079469,1720951868568,-500.0,0.00013972,2]
[332079470,1720951868578,-782.57,0.00013972,2]
[332079471,1720951868589,-1041.85,0.00013972,2]
[332079472,1720951868599,-500.0,0.00013972,2]
[332079473,1720951868610,-786.63,0.00013972,2]
[332079474,1720951868620,-500.0,0.00013972,2]
[332079475,1720951868630,-500.0,0.00013972,2]
[332079476,1720951868640,-500.0,0.00013972,2]
[332079477,1720951868650,-761.83,0.00013972,2]
[332079478,1720951868662,-500.0,0.00013972,2]
[332079479,1720951868671,-979.99,0.00013972,2]
[332079480,1720951868681,-507.59,0.00013972,2]
[332079481,1720951868691,-500.0,0.00013972,2]
[332079482,1720951868701,-500.0,0.00013972,2]
[332079483,1720951868710,-648.78,0.00013972,2]
[332079484,1720951868719,-500.0,0.00013972,2]
[332079485,1720951868729,-263.73112178,0.00013972,2]
[332079486,1720951868738,-1018.56,0.00013972,2]
[332079487,1720951868747,-815.44,0.00013972,2]
[332079488,1720951868756,-588.25,0.00013972,2]
[332079489,1720951868765,-867.79,0.00013972,2]
[332079490,1720951868775,-500.0,0.00013972,2]
[332079491,1720951868785,-500.0,0.00013972,2]
[332079492,1720951868796,-500.0,0.00013972,2]
[332079493,1720951868807,-529.95,0.00013972,2]
[332079494,1720951868821,-890.67,0.00013972,2]
[332079495,1720951868831,-1085.2,0.00013972,2]
[332079496,1720951868841,-500.0,0.00013972,2]
[332079497,1720951868851,-500.0,0.00013972,2]
[332079498,1720951868860,-1057.73,0.00013972,2]
[332079499,1720951868872,-922.01,0.00013972,2]
[332079500,1720951868882,-848.59,0.00013972,2]
[332079501,1720951868892,-2440.45738916,0.00013972,2]
[332079502,1720951868914,-3050.51565051,0.00013972,2]
[332079503,1720951868926,-304.11696033,0.00013972,2]
[332079504,1720951868936,-149.76143967,0.00013972,2]
[332079505,1720951868948,-408.39856033,0.00013972,2]
[332079506,1720951868963,-572.85,0.00013972,2]
[332079507,1720951868973,-500.0,0.00013972,2]
[332079508,1720951868985,-338.75143743,0.00013972,2]
[332079509,1720951868997,-801.44838536,0.00013972,2]
[332079510,1720951869009,-149.56017721,0.00013972,2]
[332079511,1720951869018,-381.30517784,0.00013972,2]
[332079512,1720951869098,-263.70482216,0.00013972,2]
[332079513,1720951869107,-500.0,0.00013972,2]
[332079514,1720951869118,-500.0,0.00013972,2]
[332079515,1720951869128,-684.4,0.00013972,2]
[332079516,1720951869137,-1167.06,0.00013972,2]
[332079517,1720951869149,-882.4,0.00013972,2]
[332079518,1720951869158,-624.92,0.00013972,2]
[332079519,1720951869168,-890.83,0.00013972,2]
[332079520,1720951869178,-307.54970997,0.00013972,2]
[332079521,1720951869190,-192.45029003,0.00013972,2]
[332079522,1720951869200,-1305.0,0.00013972,2]
[332079523,1720951869211,-500.0,0.00013972,2]
[332079524,1720951869221,-500.0,0.00013972,2]
[332079525,1720951869231,-500.0,0.00013972,2]
[332079526,1720951869241,-840.57,0.00013972,2]
[332079527,1720951869250,-541.49,0.00013972,2]
[332079528,1720951869260,-500.0,0.00013972,2]
[332079529,1720951869270,-508.93319633,0.00013972,2]
[332079530,1720951869279,-500.0,0.00013972,2]
[332079531,1720951869289,-1274.86,0.00013972,2]
[332079532,1720951869298,-902.94,0.00013972,2]
[332079533,1720951869308,-1012.94,0.00013972,2]
[332079534,1720951869317,-500.0,0.00013972,2]
[332079535,1720951869327,-500.0,0.00013972,2]
[332079536,1720951869337,-796.26,0.00013972,2]
[332079537,1720951869348,-751.72,0.00013972,2]
[332079538,1720951869358,-1085.21,0.00013972,2]
[332079539,1720951869369,-500.0,0.00013972,2]
[332079540,1720951869379,-500.0,0.00013972,2]
[332079541,1720951869388,-617.3,0.00013972,2]
[332079542,1720951869398,-640.64,0.00013972,2]
[332079543,1720951869408,-1023.50021333,0.00013972,2]
[332079544,1720951869439,-67.47978667,0.00013972,2]
[332079545,1720951869448,-500.0,0.00013972,2]
[332079546,1720951869461,-2359.97,0.00013972,2]
[332079547,1720951869472,-500.0,0.00013972,2]
[332079548,1720951869483,-500.0,0.00013972,2]
[332079549,1720951869494,-500.0,0.00013972,2]
[332079550,1720951869503,-500.0,0.00013972,2]
[332079551,1720951869514,-636.56,0.00013972,2]
[332079552,1720951869524,-548.16,0.00013972,2]
[332079553,1720951869534,-500.0,0.00013972,2]
[332079554,1720951869544,-500.0,0.00013972,2]
[332079555,1720951869554,-500.0,0.00013972,2]
[332079556,1720951869564,-513.31,0.00013972,2]
[332079557,1720951869575,-500.0,0.00013972,2]
[332079558,1720951869585,-500.0,0.00013972,2]
[332079559,1720951869595,-709.93,0.00013972,2]
[332079560,1720951869604,-2667.22,0.00013972,2]
[332079561,1720951869614,-736.7,0.00013972,2]
[332079562,1720951869625,-500.0,0.00013972,2]
[332079563,1720951869634,-647.01,0.00013972,2]
[332079564,1720951869643,-770.13,0.00013972,2]
[332079565,1720951869653,-973.96,0.00013972,2]
[332079566,1720951869663,-1534.07,0.00013972,2]
[332079567,1720951869673,-648.57,0.00013972,2]
[332079568,1720951869683,-500.0,0.00013972,2]
[332079569,1720951869692,-2978.27,0.00013972,2]
[332079570,1720951869702,-569.7,0.00013972,2]
[332079571,1720951869712,-500.0,0.00013972,2]
[332079572,1720951869722,-762.45,0.00013972,2]
[332079573,1720951869731,-500.0,0.00013972,2]
[332079574,1720951869741,-867.28,0.00013972,2]
[332079575,1720951869751,-500.0,0.00013972,2]
[332079576,1720951869760,-500.0,0.00013972,2]
[332079577,1720951869771,-500.0,0.00013972,2]
[332079578,1720951869780,-500.0,0.00013972,2]
[332079579,1720951869790,-1712.4,0.00013972,2]
[332079580,1720951869799,-838.29,0.00013972,2]
[332079581,1720951869809,-1049.04,0.00013972,2]
[332079582,1720951869819,-500.0,0.00013972,2]
[332079583,1720951869828,-1389.66,0.00013972,2]
[332079584,1720951869838,-500.0,0.00013972,2]
[332079585,1720951869847,-626.02,0.00013972,2]
[332079586,1720951869858,-769.02,0.00013972,2]
[332079587,1720951869867,-741.36,0.00013972,2]
[332079588,1720951869877,-500.0,0.00013972,2]
[332079589,1720951869887,-1080.56,0.00013972,2]
[332079590,1720951869896,-1654.9,0.00013972,2]
[332079591,1720951869905,-500.0,0.00013972,2]
[332079592,1720951869915,-5235.61,0.00013972,2]
[332079593,1720951869924,-1356.51,0.00013972,2]
[332079594,1720951869934,-500.0,0.00013972,2]
[332079595,1720951869944,-1084.9,0.00013972,2]
[332079596,1720951869958,-693.27,0.00013972,2]
[332079597,1720951869968,-500.0,0.00013972,2]
[332079598,1720951869978,-664.02,0.00013972,2]
[332079599,1720951869987,-500.0,0.00013972,2]
[332079600,1720951869999,-880.76,0.00013972,2]
[332079601,1720951870008,-500.0,0.00013972,2]
[332079602,1720951870018,-766.66,0.00013972,2]
[332079603,1720951870027,-500.0,0.00013972,2]
[332079604,1720951870038,-602.75,0.00013972,2]
[332079605,1720951870048,-500.0,0.00013972,2]
[332079606,1720951870058,-725.45,0.00013972,2]
[332079607,1720951870067,-500.0,0.00013972,2]
[332079608,1720951870077,-500.0,0.00013972,2]
[332079609,1720951870086,-500.0,0.00013972,2]
[332079610,1720951870095,-1229.62,0.00013972,2]
[332079611,1720951870105,-500.0,0.00013972,2]
[332079612,1720951870115,-504.17,0.00013972,2]
[332079613,1720951870125,-521.17,0.00013972,2]
[332079614,1720951870134,-961.65,0.00013972,2]
[332079615,1720951870144,-686.28,0.00013972,2]
[332079616,1720951870154,-791.41,0.00013972,2]
[332079617,1720951870163,-500.0,0.00013972,2]
[332079618,1720951870172,-540.4,0.00013972,2]
[332079619,1720951870182,-705.37,0.00013972,2]
[332079620,1720951870192,-1110.66,0.00013972,2]
[332079621,1720951870201,-1284.09,0.00013972,2]